bitfinex-derivatives/quotes_ETHF0:USTF0_20250929
["timestamp","ask_amount","ask_price","bid_price","bid_amount"]
[1759145222753,1.20797,4103.4,4103.3,0.248]
[1759145223159,1.20797,4103.4,4103.3,0.4659]
[1759145223357,1.20797,4103.4,4103.3,0.7994]
[1759145223755,1.20797,4103.4,4103.3,1.0262]
[1759145224256,0.43847,4103.4,4103.3,1.0262]
[1759145224461,0.43846,4103.5,4103.4,0.7782]
[1759145225863,1.20796,4103.5,4103.4,0.7782]
[1759145226659,1.20796,4103.5,4103.4,0.5514]
[1759145226660,1.34266,4103.5,4103.4,0.5514]
[1759145229554,1.20797,4103.4,4103.3,1.0]
[1759145229757,1.20797,4103.4,4103.3,1.248]
[1759145230454,1.20797,4103.4,4103.3,0.63683]
[1759145230766,1.20806,4102.5,4102.4,1.78109689]
[1759145230966,1.20806,4102.5,4102.4,2.02909689]
[1759145231863,0.87516,4102.5,4102.4,2.02909689]
[1759145232759,0.66286,4102.5,4102.4,2.02909689]
[1759145233159,1.09622,4103.3,4102.4,2.02909689]
[1759145233357,0.5192,4103.3,4103.2,0.442]
[1759145233657,0.95768,4103.3,4103.2,0.69]
[1759145233863,1.17848,4103.3,4103.2,1.0009]
[1759145234261,0.64638,4103.3,4103.2,1.0009]
[1759145234466,0.43848,4103.3,4103.2,1.0009]
[1759145234661,3.2078,4103.5,4103.4,0.442]
[1759145234859,3.2078,4103.5,4103.4,0.7529]
[1759145235563,4.38626,4103.5,4103.4,1.0009]
[1759145236762,1.17849,4103.2,4103.1,0.7529]
[1759145236964,1.17849,4103.2,4103.1,1.0009]
[1759145237467,0.43849,4103.2,4103.1,1.0009]
[1759145238165,1.17849,4103.2,4103.1,1.0009]
[1759145243268,1.17849,4103.2,4103.1,2.75200224]
[1759145244268,1.17849,4103.2,4103.1,1.0009]
[1759145246364,1.17849,4103.2,4103.1,2.75200224]
[1759145247464,0.96363,4102.8,4102.7,1.75110224]
[1759145247664,0.86805,4102.6,4102.5,0.5608]
[1759145247868,1.18165,4102.6,4102.5,0.8088]
[1759145251173,1.18165,4102.6,4102.4,1.00289689]
[1759145251174,0.43855,4102.5,4102.4,1.00289689]
[1759145251369,1.31475,4102.5,4102.4,1.25089689]
[1759145251674,1.31475,4102.5,4102.4,1.81169689]
[1759145251876,1.31475,4102.5,4102.4,2.01799689]
[1759145252174,1.18165,4102.5,4102.4,2.01799689]
[1759145255868,1.31475,4102.5,4102.4,2.01799689]
[1759145256178,1.31475,4102.5,4102.4,1.47269689]
[1759145256371,1.31475,4102.5,4102.4,1.81169689]
[1759145256572,1.31475,4102.5,4102.4,2.01799689]
[1759145257073,0.8762,4102.5,4102.4,2.01799689]
[1759145257266,1.18165,4102.5,4102.4,2.01799689]
[1759145257974,0.43855,4102.5,4102.4,2.01799689]
[1759145259169,0.5251,4102.9,4102.8,0.2218]
[1759145259369,0.43851,4102.9,4102.8,1.0151]
[1759145261775,0.65001,4102.9,4102.8,1.0151]
[1759145263683,0.43851,4102.9,4102.8,1.0151]
[1759145264580,0.43849,4103.1,4102.9,0.77751]
[1759145264786,0.43848,4103.2,4103.1,0.7671]
[1759145265281,0.43847,4103.3,4103.2,0.339]
[1759145265483,0.43847,4103.3,4103.2,0.7671]
[1759145265672,0.96357,4103.3,4103.2,0.7671]
[1759145269085,1.18157,4103.3,4103.2,0.7671]
[1759145275494,1.18157,4103.3,4103.2,0.7841]
[1759145275691,1.18157,4103.3,4103.2,1.0321]
[1759145280994,0.43847,4103.3,4103.2,1.0321]
[1759145281596,0.96417,4103.3,4103.2,1.0321]
[1759145281797,1.19017,4103.3,4103.2,1.0321]
[1759145282094,0.88299,4103.1,4103.0,5.17660224]
[1759145282290,1.19019,4103.1,4103.0,5.73580224]
[1759145282489,1.19019,4103.1,4103.0,5.95910224]
[1759145282697,0.65699,4103.1,4103.0,4.3371]
[1759145283500,0.43849,4103.1,4103.0,4.3371]
[1759145284194,1.19019,4103.1,4103.0,4.208]
[1759145285494,1.19019,4103.1,4103.0,4.3371]
[1759145285900,0.96419,4103.1,4103.0,4.3371]
[1759145286104,0.43849,4103.1,4103.0,4.3371]
[1759145287197,0.65699,4103.1,4103.0,4.3371]
[1759145287502,1.19019,4103.1,4103.0,4.208]
[1759145290695,0.7517,4103.1,4103.0,4.207]
[1759145290894,1.19016,4103.4,4103.3,0.7522]
[1759145291100,1.19016,4103.4,4103.3,2.75129644]
[1759145293204,1.19016,4103.4,4103.3,0.9992]
[1759145294610,0.5217,4103.7,4103.6,0.7369]
[1759145294910,0.96012,4103.7,4103.6,2.73770773]
[1759145296006,0.65042,4103.7,4103.6,2.73770773]
[1759145296509,0.43842,4103.7,4103.6,2.73770773]
[1759145297002,0.65042,4103.7,4103.6,2.73770773]
[1759145300011,0.43842,4103.7,4103.6,2.73770773]
[1759145302416,0.43842,4103.8,4103.7,0.7369]
[1759145302809,3.5175,4104.5,4103.8,0.3114]
[1759145303012,3.5175,4104.5,4104.3,0.7369]
[1759145303013,0.5217,4104.4,4104.3,0.7369]
[1759145303213,0.96005,4104.4,4104.3,0.9839]
[1759145304415,1.18265,4104.4,4104.3,0.9839]
[1759145309213,0.86448,4104.1,4104.0,3.2321]
[1759145309414,1.17588,4104.1,4104.0,3.4791]
[1759145309620,1.17588,4104.1,4104.0,3.4548]
[1759145311213,1.17588,4104.1,4104.0,3.9971]
[1759145313019,1.17588,4104.1,4104.0,4.2139]
[1759145313218,1.17588,4104.1,4104.0,4.3395]
[1759145313912,0.64588,4104.1,4104.0,4.3395]
[1759145314424,0.95728,4104.1,4104.0,4.3395]
[1759145315625,1.17588,4104.1,4104.0,4.3395]
[1759145316621,1.17588,4104.1,4104.0,4.2139]
[1759145316832,1.17588,4104.1,4104.0,1.0061]
[1759145317029,1.17591,4103.9,4103.8,0.2327]
[1759145317222,1.17591,4103.9,4103.8,0.2713]
[1759145317423,1.17591,4103.9,4103.8,0.247]
[1759145317923,1.17591,4103.9,4103.8,0.7893]
[1759145318323,1.17591,4103.9,4103.8,1.0061]
[1759145319923,1.17591,4103.9,4103.8,0.4554]
[1759145320124,1.17591,4103.9,4103.8,0.247]
[1759145321625,1.17591,4103.9,4103.8,0.7893]
[1759145321835,0.3114,4104.3,4104.2,0.4252]
[1759145322128,0.43836,4104.3,4104.2,1.0061]
[1759145327626,3.2078,4104.5,4104.2,1.0061]
[1759145327923,0.95724,4104.6,4104.5,0.8847]
[1759145328119,0.95724,4104.6,4104.5,1.1317]
[1759145329825,1.17584,4104.6,4104.5,1.0061]
[1759145331235,0.43834,4104.6,4104.5,1.1317]
[1759145331530,0.64584,4104.6,4104.5,1.1317]
[1759145332823,0.95724,4104.6,4104.5,1.1317]
[1759145333325,1.17584,4104.6,4104.5,1.0061]
[1759145338530,0.43836,4104.3,4104.2,1.7524982]
[1759145338735,1.19146,4104.3,4104.2,2.4359982]
[1759145339134,1.19146,4104.3,4104.2,2.7486982]
[1759145344235,0.3357,4104.6,4104.2,2.7486982]
[1759145344432,1.19142,4104.7,4104.6,0.7492]
[1759145344634,1.19142,4104.7,4104.6,0.9962]
[1759145345739,0.00288862,4104.8,4104.6,0.9962]
[1759145345932,0.44120862,4104.8,4104.7,0.7492]
[1759145346233,0.74150862,4104.8,4104.7,0.7492]
[1759145347238,0.19991933,4104.8,4104.7,0.7492]
[1759145348442,0.00251071,4104.8,4104.7,0.7492]
[1759145348643,0.98492071,4104.8,4104.7,0.7492]
[1759145349439,0.64922071,4104.8,4104.7,0.7492]
[1759145350044,0.21091071,4104.8,4104.7,0.7492]
[1759145350246,0.3357,4105.9,4105.0,0.1327]
[1759145350440,0.7531,4105.9,4105.8,0.7492]
[1759145350746,1.1913,4105.9,4105.8,0.9962]
[1759145351338,1.19314129,4105.9,4105.8,0.99851528]
[1759145351551,1.19314129,4105.9,4105.8,0.00231528]
[1759145351740,1.19314129,4105.9,4105.8,0.24931528]
[1759145353940,1.19314129,4105.9,4105.8,0.00231528]
[1759145354146,1.19314129,4105.9,4105.8,0.24931528]
[1759145354745,1.19314129,4105.9,4105.8,0.46851528]
[1759145355047,1.19314129,4105.9,4105.8,0.80821528]
[1759145355243,1.19314129,4105.9,4105.8,0.24931528]
[1759145356539,6.19314129,4105.9,4105.8,0.00231528]
[1759145357449,1.19314129,4105.9,4105.8,0.00231528]
[1759145362744,1.19314129,4105.9,4105.8,0.56121528]
[1759145363444,1.19314129,4105.9,4105.8,0.00231528]
[1759145368255,1.19314129,4105.9,4105.8,0.55241528]
[1759145372651,1.19314129,4105.9,4105.8,0.00231528]
[1759145381371,1.19314129,4105.9,4105.8,0.55241528]
[1759145383366,1.19314129,4105.9,4105.8,0.00231528]
[1759145386170,1.19314129,4105.9,4105.8,0.76451528]
[1759145387073,1.19314129,4105.9,4105.8,0.00231528]
[1759145397579,0.85923,4105.6,4105.5,0.19145452]
[1759145397881,1.19053,4105.6,4105.5,0.74055452]
[1759145398480,1.19053,4105.6,4105.5,0.74233169]
[1759145398976,1.19053,4105.6,4105.5,0.00177717]
[1759145402082,4.39833,4105.6,4105.5,0.00177717]
[1759145402282,4.93336345,4105.6,4105.5,0.00177717]
[1759145406288,0.85931,4104.8,4104.7,0.7976]
[1759145406482,1.19061,4104.8,4104.7,1.0446]
[1759145406674,1.19061,4104.8,4104.7,1.0227]
[1759145407389,1.19061,4104.8,4104.7,1.02576457]
[1759145407783,1.09569,4105.2,4104.7,1.02576457]
[1759145407988,0.3313,4105.2,4105.1,0.7757]
[1759145408289,0.98387,4105.2,4105.1,0.7757]
[1759145411391,1.19057,4105.2,4105.1,0.7757]
[1759145412396,0.65257,4105.2,4105.1,0.7757]
[1759145412693,0.98387,4105.2,4105.1,0.7757]
[1759145413091,1.19057,4105.2,4105.1,0.7757]
[1759145418296,0.43827,4105.2,4105.1,0.7757]
[1759145418499,0.3236,4105.7,4105.1,3.6436]
[1759145418701,0.97144,4105.5,4105.4,0.7591]
[1759145419001,1.19594,4105.5,4105.4,0.7591]
[1759145420602,0.64784,4105.5,4105.4,0.7591]
[1759145421098,0.97144,4105.5,4105.4,0.7591]
[1759145422403,1.19594,4105.5,4105.4,0.7591]
[1759145423688,1.32164,4105.5,4105.4,0.5336]
[1759145423889,1.19597,4105.2,4105.1,3.4291]
[1759145424290,1.19597,4105.2,4105.1,3.4548]
[1759145426005,1.19597,4105.2,4105.1,0.247]
[1759145427306,1.09572,4105.1,4104.8,0.3325]
[1759145427513,1.19451,4104.8,4104.7,0.75496457]
[1759145427803,1.19451,4104.8,4104.7,1.00196457]
[1759145429002,1.19451,4104.8,4104.7,0.00306457]
[1759145429496,1.19451,4104.8,4104.7,0.25006457]
[1759145430795,1.19451,4104.8,4104.7,0.00306457]
[1759145431006,1.19451,4104.8,4104.7,0.25006457]
[1759145432699,1.19451,4104.8,4104.7,0.00306457]
[1759145435403,6.19451,4104.8,4104.7,0.00306457]
[1759145435606,6.19451,4104.8,4104.2,0.2706]
[1759145435607,1.19456,4104.3,4104.2,0.2706]
[1759145435808,4.40236,4104.3,4104.2,0.2706]
[1759145436005,4.40236,4104.3,4104.2,0.247]
[1759145436711,4.40236,4104.3,4104.2,0.25000229]
[1759145438308,4.40236,4104.3,4104.2,0.00300229]
[1759145439120,9.40236,4104.3,4104.2,0.00300229]
[1759145439319,9.40236,4104.3,4103.7,0.0214]
[1759145439320,0.87432,4103.8,4103.7,0.0214]
[1759145439612,1.19462,4103.8,4103.7,0.0214]
[1759145440010,1.19462,4103.8,4103.0,3.3376]
[1759145440011,1.19469,4103.1,4103.0,3.4194]
[1759145440206,1.19469,4103.1,4103.0,3.7519]
[1759145440403,1.19469,4103.1,4103.0,4.20952656]
[1759145440907,0.43849,4103.1,4103.0,4.34252656]
[1759145443114,0.43847,4103.3,4103.0,4.34252656]
[1759145443318,0.65824,4103.6,4103.5,0.8849]
[1759145443507,0.65824,4103.6,4103.5,1.1319]
[1759145444412,0.97854,4103.6,4103.5,1.1319]
[1759145448215,1.19464,4103.6,4103.5,0.9989]
[1759145448420,0.97859,4103.1,4103.0,4.09552656]
[1759145448720,0.97859,4103.1,4103.0,4.34252656]
[1759145452325,0.43849,4103.1,4103.0,4.34252656]
[1759145453023,0.43849,4103.2,4103.1,0.7519]
[1759145454218,1.19099,4103.2,4103.1,0.7519]
[1759145457622,1.19099,4103.2,4103.1,0.9989]
[1759145458520,1.19099,4103.2,4103.1,0.4586]
[1759145459230,1.19099,4103.1,4103.0,3.21062656]
[1759145459418,1.19099,4103.1,4103.0,3.45762656]
[1759145460516,1.19099,4103.1,4103.0,0.00282656]
[1759145460721,1.19099,4103.1,4103.0,0.24982656]
[1759145461819,1.19099,4103.1,4103.0,0.00282656]
[1759145465225,1.19099,4103.1,4102.4,1.0]
[1759145465226,1.32206,4102.5,4102.4,1.0]
[1759145465433,1.32206,4102.5,4102.4,0.4702]
[1759145465830,1.32206,4102.5,4102.4,1e-05]
[1759145466126,1.32206,4102.5,4101.8,0.326]
[1759145466127,1.19112,4101.9,4101.8,0.5481]
[1759145466333,1.19112,4101.9,4101.8,0.54980695]
[1759145467027,1.19112,4101.9,4101.8,0.00170695]
[1759145468031,1.19112,4101.9,4101.8,0.54980695]
[1759145470230,1.39112,4101.9,4101.8,0.54980695]
[1759145470434,1.39112,4101.9,4101.8,0.75580695]
[1759145473339,1.39112,4101.9,4101.8,0.00170695]
[1759145474436,1.1799,4101.1,4101.0,3.7575]
[1759145474634,1.1799,4101.1,4101.0,3.6757]
[1759145475039,0.86916,4100.6,4100.5,0.894]
[1759145475230,0.86916,4100.6,4100.5,1.141]
[1759145475231,1.37996,4100.6,4100.5,1.141]
[1759145475430,1.37996,4100.6,4100.5,1.14292387]
[1759145477042,0.63876,4100.6,4100.5,1.14292387]
[1759145477445,0.2,4100.6,4100.5,6.58169387]
[1759145477651,3.433,4101.6,4101.5,0.7622]
[1759145477942,3.87165,4101.6,4101.5,1.1341]
[1759145479346,4.38765,4101.6,4101.0,0.1249]
[1759145479545,1.1799,4101.1,4101.0,0.7622]
[1759145479745,1.1799,4101.1,4101.0,1.0092]
[1759145480251,1.1799,4101.1,4101.0,1.1341]
[1759145480451,0.6639,4101.1,4101.0,1.1341]
[1759145481146,0.9747,4101.1,4101.0,1.1341]
[1759145481342,0.9747,4101.1,4101.0,0.8871]
[1759145481543,1.1799,4101.1,4101.0,1.1341]
[1759145482150,1.1799,4101.1,4101.0,0.7622]
[1759145482354,1.30902,4101.0,4100.9,3.2078]
[1759145482548,1.30902,4101.0,4100.9,3.4548]
[1759145482853,1.30902,4101.0,4100.9,4.217]
[1759145483047,1.17992,4101.0,4100.9,4.217]
[1759145483945,0.66392,4101.0,4100.9,4.217]
[1759145484341,0.43872,4101.0,4100.9,4.217]
[1759145484543,4.40625,4101.6,4101.5,0.7732]
[1759145484754,4.40625,4101.6,4101.5,1.0202]
[1759145486248,4.40625,4101.6,4101.5,1.1521]
[1759145490462,4.40625,4101.6,4101.5,1.0202]
[1759145490660,1.33262,4101.0,4100.9,3.2078]
[1759145490861,1.33262,4101.0,4100.9,3.4548]
[1759145491053,0.43872,4101.0,4100.9,4.228]
[1759145491656,0.43871,4101.1,4100.9,9.66673]
[1759145491961,0.43871,4101.1,4101.0,0.905]
[1759145493250,0.43871,4101.1,4101.0,5.905]
[1759145493461,0.43871,4101.1,4101.0,6.34372]
[1759145493661,0.43869,4101.3,4101.1,0.7747]
[1759145493959,0.43869,4101.3,4101.2,1.0202]
[1759145494158,0.43869,4101.3,4101.2,1.45889]
[1759145494556,0.43869,4101.3,4101.2,1.0202]
[1759145494752,1.19849,4101.3,4101.2,1.0202]
[1759145495059,0.99309,4101.3,4101.2,1.0202]
[1759145497665,0.43866,4101.4,4101.2,1.0202]
[1759145497866,0.43867,4101.3,4101.2,1.0202]
[1759145498263,1.19847,4101.3,4101.2,1.0202]
[1759145498464,1.19847,4101.3,4101.2,0.6842]
[1759145499866,1.19847,4101.3,4101.2,0.4647]
[1759145500069,0.3365,4101.1,4101.0,1.7524982]
[1759145500266,0.7598,4101.1,4101.0,1.9994982]
[1759145501070,1.1985,4101.1,4101.0,1.9994982]
[1759145501573,1.1985,4101.1,4101.0,2.7726982]
[1759145501770,0.4387,4101.1,4101.0,1.0202]
[1759145502068,0.4387,4101.1,4101.0,1.152]
[1759145502277,0.9931,4101.1,4101.0,1.0202]
[1759145503072,0.7752,4101.1,4101.0,1.0202]
[1759145503372,0.7598,4101.4,4101.3,0.4372]
[1759145503572,1.19846,4101.4,4101.3,1.0202]
[1759145504257,0.86197,4101.3,4101.2,1.75267865]
[1759145504461,1.19848,4101.2,4101.1,1.75267865]
[1759145504662,1.19848,4101.2,4101.1,1.99967865]
[1759145504863,1.19848,4101.2,4101.1,2.21737865]
[1759145506271,1.19848,4101.2,4101.1,2.77287865]
[1759145506575,1.19848,4101.2,4101.1,2.43687865]
[1759145507276,1.19848,4101.2,4101.1,0.6842]
[1759145507777,1.19848,4101.2,4101.1,0.247]
[1759145508377,1.19848,4101.2,4101.1,0.4647]
[1759145508775,1.19848,4101.2,4101.1,1.0202]
[1759145510573,0.77518,4101.2,4101.1,1.0202]
[1759145510775,0.99308,4101.2,4101.1,1.0202]
[1759145511074,1.19848,4101.2,4101.1,1.0202]
[1759145511978,1.19848,4101.2,4101.1,0.6842]
[1759145515383,1.19848,4101.2,4101.1,1.0023]
[1759145515881,0.99308,4101.2,4101.1,1.0023]
[1759145518775,0.3088,4101.5,4101.2,0.3181]
[1759145518983,0.43867,4101.3,4101.2,0.7602]
[1759145519177,0.43867,4101.3,4101.2,4.215]
[1759145519386,0.43867,4101.3,4101.2,6.40692891]
[1759145519584,0.43867,4101.3,4101.2,4.215]
[1759145520483,0.43867,4101.3,4101.2,6.40657057]
[1759145520687,1.19277,4101.3,4101.2,5.61387057]
[1759145520983,1.19277,4101.3,4101.2,3.4538]
[1759145521185,1.19277,4101.3,4101.2,3.6683]
[1759145521583,1.19277,4101.3,4101.2,4.214]
[1759145524185,0.97187,4101.3,4101.2,4.214]
[1759145526588,0.74747,4101.3,4101.2,4.214]
[1759145526781,0.74742,4101.7,4101.6,0.4421]
[1759145526980,0.74742,4101.7,4101.6,1.0062]
[1759145527481,0.43862,4101.7,4101.6,1.0062]
[1759145529393,0.3088,4102.3,4101.8,0.3181]
[1759145529690,0.74736,4102.3,4102.2,0.7602]
[1759145529881,0.74736,4102.3,4102.2,1.0062]
[1759145531182,0.74736,4102.3,4102.2,2.7564034]
[1759145532585,0.97176,4102.3,4102.2,2.7564034]
[1759145533288,0.97176,4102.3,4102.2,1.0062]
[1759145533690,0.43855,4102.4,4102.3,0.7514]
[1759145533889,0.00215538,4102.5,4102.3,0.4147]
[1759145534082,0.00215538,4102.5,4102.4,0.9974]
[1759145534283,0.44069538,4102.5,4102.4,0.9974]
[1759145534496,0.76369538,4102.5,4102.4,0.9974]
[1759145534794,0.44069538,4102.5,4102.4,0.9974]
[1759145535191,0.00215538,4102.5,4102.4,0.9974]
[1759145535399,0.00215538,4102.5,4102.4,3.1861534]
[1759145535698,0.00215538,4102.5,4102.4,6.43595]
[1759145535900,0.43849,4103.0,4102.4,5.9974]
[1759145536090,0.43849,4103.0,4102.9,3.9592]
[1759145536290,0.43849,4103.0,4102.9,4.2052]
[1759145536897,0.323,4103.2,4103.0,0.3367]
[1759145537090,0.323,4103.2,4103.1,0.9974]
[1759145537091,0.76146,4103.2,4103.1,0.9974]
[1759145537290,0.76395067,4103.2,4103.1,0.9974]
[1759145537498,0.98215067,4103.2,4103.1,0.9974]
[1759145538796,0.76395067,4103.2,4103.1,0.9974]
[1759145539197,0.00249067,4103.2,4103.1,0.9974]
[1759145539793,0.00249067,4103.2,4103.1,1.43587]
[1759145542096,0.323,4103.9,4103.7,0.3367]
[1759145542302,0.5412,4103.9,4103.8,0.9974]
[1759145542802,0.97959,4103.9,4103.8,0.9974]
[1759145543100,0.97959,4103.9,4103.8,1.43821202]
[1759145543101,0.00241093,4103.9,4103.8,1.43821202]
[1759145543794,0.76132,4104.6,4104.1,0.43836]
[1759145544102,0.3308,4104.9,4104.8,0.428]
[1759145544299,0.3308,4104.9,4104.8,0.9894]
[1759145544496,3.2078,4105.1,4104.8,0.674]
[1759145544697,0.99506,4105.1,4105.0,3.9512]
[1759145544896,0.55852037,4105.1,4105.0,4.1972]
[1759145545203,0.99678037,4105.1,4105.0,4.1972]
[1759145545402,0.55852037,4105.1,4105.0,4.1972]
[1759145545701,0.99678037,4105.1,4105.0,4.1972]
[1759145545902,0.33252037,4105.1,4105.0,4.1972]
[1759145546101,0.00172037,4105.1,4105.0,4.3211]
[1759145546801,0.33252037,4105.1,4105.0,4.3211]
[1759145547195,0.77532037,4105.1,4105.0,4.1972]
[1759145547696,0.56327,4105.0,4104.8,0.0243]
[1759145547997,0.7736,4104.9,4104.8,0.0243]
[1759145548303,0.7736,4104.9,4104.8,0.4886]
[1759145548304,1.21188,4104.9,4104.8,0.4886]
[1759145548499,1.21188,4104.9,4104.8,1.0137]
[1759145548798,1.21188,4104.9,4104.8,0.9894]
[1759145548992,1.21188,4104.9,4104.8,0.674]
[1759145549193,1.33693,4104.5,4104.4,3.6358]
[1759145549393,0.99513,4104.5,4104.4,3.8818]
[1759145549606,0.5678,4105.0,4104.9,0.2183]
[1759145549904,0.5678,4105.0,4104.9,0.4643]
[1759145549905,0.8986,4105.0,4104.9,0.4643]
[1759145550104,1.33687,4105.0,4104.9,0.4643]
[1759145550595,1.33687,4105.0,4104.9,0.246]
[1759145551595,1.21191,4104.6,4104.5,0.5337]
[1759145551798,1.21191,4104.6,4104.5,0.9894]
[1759145552806,1.21191,4104.6,4104.5,0.7434]
[1759145553004,1.21191,4104.6,4104.5,0.9894]
[1759145554304,0.5568,4104.6,4104.5,0.9894]
[1759145554501,0.43828,4104.9,4104.6,0.3154]
[1759145554711,0.66429,4104.9,4104.8,0.7434]
[1759145555205,0.99509,4104.9,4104.8,0.7434]
[1759145555613,1.21189,4104.9,4104.8,0.7434]
[1759145556309,1.21189,4104.9,4104.7,0.246]
[1759145556310,1.33693,4104.5,4104.4,3.6358]
[1759145556809,1.33693,4104.5,4104.4,3.8818]
[1759145557910,1.33693,4104.5,4104.4,3.6358]
[1759145558115,1.33693,4104.5,4104.4,3.4261]
[1759145558410,1.33693,4104.5,4104.4,3.4538]
[1759145559511,1.33693,4104.5,4104.4,3.6721]
[1759145559805,1.33693,4104.5,4104.4,4.1972]
[1759145560709,0.4383,4104.7,4104.6,0.7434]
[1759145561018,0.43829,4104.8,4104.7,0.7434]
[1759145561311,0.76908,4105.0,4104.9,0.428]
[1759145561507,0.00172037,4105.1,4105.0,0.7434]
[1759145561715,0.00172037,4105.1,4105.0,1.27807]
[1759145562406,0.3308,4105.6,4105.3,0.43824]
[1759145562715,0.3308,4105.9,4105.8,0.2097]
[1759145562899,3.2078,4106.7,4105.9,0.3154]
[1759145563103,1.33671,4106.5,4106.4,0.428]
[1759145563310,0.5678,4106.0,4105.9,0.2183]
[1759145563505,0.5678,4106.0,4105.9,0.4333]
[1759145563506,0.9005275,4106.0,4105.9,0.4333]
[1759145563706,1.3386975,4106.0,4105.9,0.4333]
[1759145564304,1.3386975,4106.0,4105.9,0.2183]
[1759145564506,1.3386975,4106.0,4105.9,0.4643]
[1759145564703,1.3386975,4106.0,4105.9,0.9894]
[1759145564907,1.3386975,4106.0,4105.9,0.674]
[1759145565510,1.3386975,4106.0,4105.9,0.9894]
[1759145565713,0.5587275,4106.0,4105.9,0.9894]
[1759145566018,0.0019275,4106.0,4105.9,0.9894]
[1759145567317,0.43812,4106.5,4106.4,0.7434]
[1759145567515,0.43812,4106.5,4106.4,0.9894]
[1759145568015,0.99492,4106.5,4106.4,0.9894]
[1759145568214,0.99764006,4106.5,4106.4,0.9894]
[1759145569618,0.44084006,4106.5,4106.4,0.9894]
[1759145570012,0.99764006,4106.5,4106.4,0.9894]
[1759145570519,0.44084006,4106.5,4106.4,0.9894]
[1759145572422,0.88364006,4106.5,4106.4,0.7434]
[1759145572612,0.76895,4106.2,4106.1,37.989]
[1759145572921,1.21176,4106.1,4106.0,0.2183]
[1759145573119,0.7736,4105.4,4105.2,3.2078]
[1759145573322,0.88103,4105.4,4105.3,0.246]
[1759145573518,0.88103,4105.4,4105.3,0.2183]
[1759145573817,0.3308,4105.3,4105.2,3.2078]
[1759145574017,0.7736,4105.3,4105.2,3.2078]
[1759145574214,0.7736,4105.3,4105.2,3.4538]
[1759145574816,0.7736,4105.3,4105.2,3.6743]
[1759145575218,0.5568,4105.3,4105.2,4.226]
[1759145576116,0.43822,4105.5,4105.4,0.4422]
[1759145576320,0.43822,4105.5,4105.4,1.0182]
[1759145576522,0.43821,4105.7,4105.4,1.0182]
[1759145576722,1.00091,4105.7,4105.6,0.7722]
[1759145576918,1.00091,4105.7,4105.6,1.0182]
[1759145577825,1.22071,4105.7,4105.6,1.0182]
[1759145578619,0.7825,4105.7,4105.6,1.0182]
[1759145578823,0.5627,4105.7,4105.6,0.7722]
[1759145579124,0.5627,4105.7,4105.6,1.0182]
[1759145580325,0.7825,4105.7,4105.6,1.0182]
[1759145580825,0.4468,4105.4,4105.3,0.2205]
[1759145581027,1.22073,4105.4,4105.3,0.2205]
[1759145581323,1.22073,4105.4,4105.3,0.246]
[1759145581627,1.22073,4105.4,4105.2,3.2078]
[1759145581628,0.7825,4105.3,4105.2,3.2078]
[1759145582121,0.7825,4105.3,4105.2,3.4538]
[1759145582317,0.7825,4105.3,4105.2,3.6743]
[1759145583123,1.22074,4105.3,4105.2,3.6743]
[1759145584125,1.22074,4105.3,4105.2,3.4538]
[1759145584322,1.22074,4105.3,4105.2,3.2078]
[1759145584527,1.22074,4105.3,4105.2,3.4538]
[1759145584722,1.22074,4105.3,4105.2,3.2078]
[1759145584913,1.22074,4105.3,4105.0,0.0243]
[1759145584914,1.22076,4105.1,4105.0,0.0243]
[1759145585113,1.22076,4105.1,4105.0,0.2703]
[1759145585323,1.22076,4105.1,4105.0,0.246]
[1759145586029,1.22076,4105.1,4105.0,1.0182]
[1759145586829,0.43826,4105.1,4105.0,1.1421]
[1759145587022,0.4654,4105.5,4105.4,0.7722]
[1759145587023,0.43822,4105.5,4105.4,0.7722]
[1759145587222,1.00092,4105.5,4105.4,1.0182]
[1759145587524,1.00092,4105.5,4105.3,3.2078]
[1759145587525,0.77393,4105.4,4105.3,3.2078]
[1759145587828,1.22073,4105.4,4105.3,0.246]
[1759145588821,1.22073,4105.4,4105.3,3.896]
[1759145589022,1.22073,4105.4,4105.3,4.226]
[1759145589226,0.66523,4105.4,4105.3,4.226]
[1759145589423,1.22073,4105.4,4105.3,4.226]
[1759145590624,0.3357,4105.9,4105.3,3.896]
[1759145590925,1.22068,4105.9,4105.8,0.2205]
[1759145591126,1.22068,4105.9,4105.8,0.4675]
[1759145591325,1.22068,4105.9,4105.8,0.247]
[1759145591830,1.22074,4105.4,4105.3,3.4283]
[1759145592033,1.22074,4105.4,4105.3,3.6753]
[1759145596623,0.43826,4105.2,4105.1,0.0243]
[1759145596830,1.18306,4105.2,4105.1,0.4821]
[1759145597128,1.18306,4105.2,4105.1,0.4578]
[1759145597627,1.18306,4105.2,4105.1,0.2108]
[1759145598029,1.18306,4105.2,4105.1,0.4578]
[1759145598633,1.18306,4105.2,4105.1,0.2108]
[1759145598829,0.99838,4105.0,4104.9,1.95386509]
[1759145599141,1.31048,4105.0,4104.9,2.20086509]
[1759145599632,1.31048,4105.0,4104.9,2.42816509]
[1759145599934,0.43828,4105.0,4104.9,1.0176]
[1759145601235,0.75038,4105.0,4104.9,1.0176]
[1759145601944,0.43828,4105.0,4104.9,1.0176]
[1759145602236,0.43827,4105.1,4105.0,0.8949]
[1759145602437,0.43827,4105.1,4105.0,1.1409]
[1759145603431,3.5199,4105.7,4105.1,0.3325]
[1759145603633,3.5199,4105.7,4105.5,0.0964]
[1759145603634,3.2078,4105.7,4105.5,0.0964]
[1759145603832,0.4382,4105.7,4105.6,2.43440289]
[1759145604033,0.4382,4105.7,4105.6,0.6841]
[1759145604330,0.43819,4105.8,4105.7,0.3382]